Cogmind - Beta 10.2 @@@ ROGUE MODE // 2021.09.06 @ 00:58:34 Player: Savant Result: Destroyed by H-77 Assassin with High-powered Shotgun Performance ------------- Evolutions (6) 3000 Regions Visited (25) 5000 Robots Destroyed (303) 1515 Value Destroyed (13384) 13384 Prototype IDs (44) 880 Alien Tech Used (0) 0 Bonus (5350) 5350 TOTAL SCORE: 29129 Bonus ------- High Alert Combat Kills 381 Follower Combat Kills 2118 Entered Garrisons 600 Used RIF Installer 1500 Met Data Miner 300 Met Zhirov 300 Met R17 at Cetus 500 Read Decrypted Archives 300 Friendly Fire -649 Cogmind --------- Core Integrity 0/1150 Matter 114/300 Energy 89/100 System Corruption 0% Temperature Cool (0) Movement Core (1300) Ox25 Location -4/Garrison Parts ------- > --- POWER (2) -------- (None) > --- PROPULSION (2) --- (None) > --- UTILITY (13) ----- Advanced Heat Sink Advanced Coolant Injector High-capacity Storage Unit High-capacity Storage Unit Advanced Signal Interpreter Advanced Terrain Scanner Improved Hacking Suite Relay Coupler [NC] (28) Relay Coupler [Swarmer] (50) > --- WEAPON (2) ------- KE Penetrator Improved KE Penetrator > --- INVENTORY (20) --- Improved Energy Well (600) Improved Energy Well (536) Experimental Sensor Array Relay Coupler [NC] (38) Relay Coupler [Swarmer] (56) Relay Coupler [Brawler] (33) Relay Coupler [Behemoth] (15) Relay Coupler [Behemoth] (18) Improved Component Analysis Suite Advanced Variable Charge Gun Advanced Variable Charge Gun Neutron Cannon KE Penetrator Hardcell Cannon Mini Smartbomb Launcher Point Singularity Launcher Improved Remote Datajack Power Sword Peak State ------------ > --- POWER ------------ Light Antimatter Reactor Quantum Reactor > --- PROPULSION ------- Centrium Wheel Centrium Wheel > --- UTILITY ---------- Improved Cooling System Large Storage Unit High-capacity Storage Unit High-capacity Storage Unit Experimental Sensor Array Advanced Signal Interpreter Centrium Medium Armor Plating Centrium Medium Armor Plating Centrium Medium Armor Plating Improved Hacking Suite Relay Coupler [NC] Relay Coupler [Swarmer] Relay Coupler [Hunter] > --- WEAPON ----------- Improved KE Penetrator Improved KE Penetrator > --- INVENTORY -------- Advanced Coolant Injector Improved Energy Well Improved Energy Well Advanced Terrain Scanner Improved Medium Armor Plating Relay Coupler [NC] Relay Coupler [Hunter] Relay Coupler [Behemoth] Improved Component Analysis Suite System Backup Module Improved Arc Projector Advanced Variable Charge Gun Advanced Variable Charge Gun Neutron Cannon Matter Neutralizer Matter Neutralizer KE Penetrator KE Penetrator Improved KE Penetrator Hardcell Cannon Mini Smartbomb Launcher Point Singularity Launcher Improved Remote Datajack Power Sword [Rating: 117] Favorites ----------- Power Antimatter Reactor Engine Heavy Ion Engine Power Core Neutrino Core Reactor Antimatter Reactor Propulsion Armored Wheel Wheel Armored Wheel Flight Unit VTOL Module Utility High-capacity Storage Unit Device Experimental Sensor Array Storage High-capacity Storage Unit Processor Advanced Signal Interpreter Hackware Hacking Suite Protection Powered Armor Weapon Advanced Beam Cannon Energy Gun Precision Shock Rifle Energy Cannon Advanced Beam Cannon Ballistic Gun KE Penetrator Launcher Advanced EMP Blaster Special Weapon Improved Remote Datajack Slashing Weapon Power Sword Build | -11 -10 -10 -9 -9 -8 -8 -7 -7 -7 -7 -6 -6 -6 -5 -5 -5 -5 -4 -4 -4 -4 -4 -4 -4 -4 ------- Run | Scr Mat Min Mat Min Mat Sto Fac Low Low Dat Pro Fac Gar Fac Was Fac Gar Fac Was Fac Ext Cet Arc Hub Gar Slots Evolved 12 | . . . 2 . 2 . 2 . . . . 2 . 2 . . . 2 . . . . . . . Power 1 | . . . . . . . . . . . . . . 1 . . . . . . . . . . . Propulsion . | . . . . . . . . . . . . . . . . . . . . . . . . . . Utility 11 | . . . 2 . 2 . 2 . . . . 2 . 1 . . . 2 . . . . . . . Weapon . | . . . . . . . . . . . . . . . . . . . . . . . . . . Parts Attached 584 | 6 3 8 22 1 18 27 55 12 13 1 17 41 39 50 10 57 29 44 17 21 38 15 4 25 11 Power 40 | 1 . . 2 . 1 2 4 . 2 . . 1 4 4 1 2 1 3 2 1 4 2 1 2 . Engine 11 | 1 . . 2 . 1 2 1 . . . . . 4 . . . . . . . . . . . . Core 11 | . . . . . . . 3 . 2 . . 1 . 3 . . . . . . 2 . . . . Reactor 18 | . . . . . . . . . . . . . . 1 1 2 1 3 2 1 2 2 1 2 . Propulsion 69 | 2 . 5 6 . 1 4 3 2 . . 1 3 8 8 . 7 4 5 . 2 2 1 . 4 1 Treads . | . . . . . . . . . . . . . . . . . . . . . . . . . . Leg . | . . . . . . . . . . . . . . . . . . . . . . . . . . Wheel 68 | 2 . 5 6 . 1 4 3 1 . . 1 3 8 8 . 7 4 5 . 2 2 1 . 4 1 Hover . | . . . . . . . . . . . . . . . . . . . . . . . . . . Flight 1 | . . . . . . . . 1 . . . . . . . . . . . . . . . . . Utility 229 | 1 2 2 5 1 9 9 24 4 7 1 9 15 8 27 1 24 14 20 8 7 12 7 . 7 5 Device 137 | . 1 2 2 . 1 6 15 3 5 1 7 9 5 11 . 17 10 14 5 5 9 3 . 3 3 Storage 14 | 1 1 . 2 1 3 . 2 . . . 1 . . 1 . 1 1 . . . . . . . . Processor 3 | . . . . . 1 . . . . . . . . 1 . . . . . . 1 . . . . Hackware 31 | . . . . . . 1 2 . . . . 1 . 10 1 1 3 5 2 2 1 . . 1 1 Protection 44 | . . . 1 . 4 2 5 1 2 . 1 5 3 4 . 5 . 1 1 . 1 4 . 3 1 Artifact . | . . . . . . . . . . . . . . . . . . . . . . . . . . Weapon 246 | 2 1 1 9 . 7 12 24 6 4 . 7 22 19 11 8 24 10 16 7 11 20 5 3 12 5 Energy Gun 35 | . 1 . 4 . 2 2 6 3 1 . 1 3 2 . . 1 2 3 . . 1 . 1 2 . Energy Cannon 98 | . . 1 4 . 3 5 9 1 1 . 4 13 5 2 . 13 2 7 1 7 14 3 . 3 . Ballistic Gun 37 | 2 . . . . 1 2 3 . . . . 2 4 2 4 4 . . 3 . . 1 2 4 3 Ballistic Cannon . | . . . . . . . . . . . . . . . . . . . . . . . . . . Launcher 19 | . . . 1 . . 3 . 2 2 . 2 . 6 . . . 1 . . . . 1 . . 1 Special Weapon 32 | . . . . . 1 . . . . . . . . 4 3 5 2 3 3 3 4 . . 3 1 Impact Weapon . | . . . . . . . . . . . . . . . . . . . . . . . . . . Slashing Weapon 25 | . . . . . . . 6 . . . . 4 2 3 1 1 3 3 . 1 1 . . . . Piercing Weapon . | . . . . . . . . . . . . . . . . . . . . . . . . . . Special Melee Weapon . | . . . . . . . . . . . . . . . . . . . . . . . . . . Unidentified Prototypes 9 | . . . 3 . . 2 . . . . 1 . . . . . . . . . . 2 1 . . Parts Lost 114 | . . 1 1 . 7 4 5 1 3 . 5 2 18 5 . 9 2 6 . 2 8 8 2 19 6 Power 19 | . . . . . 1 . 2 . 1 . . . 3 3 . . . 1 . 1 2 . 1 4 . Propulsion 18 | . . . . . . 1 1 . . . 1 . 2 . . 3 1 2 . . . 1 . 4 2 Utility 36 | . . . . . 1 . 1 . 1 . 2 1 4 2 . 3 . 2 . 1 4 4 . 7 3 Weapon 41 | . . 1 1 . 5 3 1 1 1 . 2 1 9 . . 3 1 1 . . 2 3 1 4 1 Highest Loss Streak 16 | . . 1 1 . 3 2 2 1 2 . 4 1 6 2 . 8 1 4 . 1 8 6 2 16 6 Average Slot Usage (%) 95 | . 98 99 99 100 100 99 99 100 99 100 100 96 85 96 99 94 87 91 99 85 88 93 99 91 68 Engine 3 | . 14 14 11 11 9 9 5 . . . . . 5 2 . . . . . . . . . . . Core 2 | . . . . . . . 1 7 6 7 7 5 . 5 7 4 . . . . 1 . . . . Reactor 3 | . . . . . . . . . . . . . . 1 3 6 11 9 10 10 8 9 9 7 . Wheel 13 | . 28 28 22 22 18 17 15 15 15 15 15 12 5 9 11 9 10 8 10 10 9 8 10 9 9 Device 8 | . 12 13 13 11 9 8 6 12 7 7 7 7 4 4 4 7 8 11 18 4 7 10 15 10 11 Storage 19 | . 14 14 19 31 27 27 23 23 23 23 23 20 20 17 17 17 17 15 15 15 15 15 15 15 14 Processor 4 | . . . . . 7 9 7 7 7 7 7 6 6 5 5 5 5 2 . . . 5 5 5 5 Hackware 16 | . . . . . . . 14 15 15 15 15 20 19 28 35 24 13 24 31 31 29 26 26 22 11 Protection 5 | . . . 11 1 10 9 7 2 6 7 7 8 9 4 . 2 5 4 1 5 4 5 5 8 4 Energy Gun 2 | . 13 8 5 . 5 4 2 8 6 7 2 1 1 1 . . 3 1 . . . . . 2 . Energy Cannon 6 | . . 5 15 22 11 13 5 5 6 7 12 10 2 . . 3 3 5 5 6 5 6 5 1 . Ballistic Gun 1 | . 14 14 . . . . 3 . . . . . 6 . 3 . . . 3 . . 3 5 4 8 Naked Turns . | . . . . . . . . . . . . . . . . . . . . . . . . . . Heaviest Build 178 | 12 42 46 63 67 110 114 113 109 115 115 119 125 121 124 116 172 177 174 167 178 175 163 148 148 102 Greatest Support 32 | 26 26 32 26 24 24 24 24 24 24 24 28 28 22 26 20 32 32 32 20 32 32 32 32 32 26 Greatest Overweight (x) 13 | . 1 1 2 2 4 8 4 4 4 4 7 7 7 7 5 13 10 10 8 8 8 5 4 7 7 Average Overweight (x) 4 | . . 1 1 2 3 4 4 4 4 4 4 4 6 4 5 5 5 6 6 6 4 4 4 3 3 Largest Inventory Capacity 26 | 6 12 12 16 20 26 26 26 26 26 26 26 26 26 26 26 26 26 26 26 26 26 26 26 26 26 Average Capacity 24 | 5 10 12 15 19 25 26 26 26 26 26 26 26 26 26 26 26 26 26 26 26 26 26 26 26 25 Most Carried 26 | 2 5 12 16 17 26 26 26 26 26 24 26 26 26 26 26 26 26 26 26 26 26 26 25 26 22 Average Carried 23 | 1 4 10 14 16 24 25 25 25 23 24 24 23 24 24 24 24 25 25 25 25 25 24 24 24 18 Final Capacity 26 | 6 12 12 16 20 26 26 26 26 26 26 26 26 26 26 26 26 26 26 26 26 26 26 26 26 20 Final Carried 26 | 2 5 12 16 17 24 26 26 26 24 24 23 26 26 23 26 26 26 26 26 26 26 25 23 23 18 Class Distribution -------------------- 38% | Bothacker-Mutant 37% | Hauler-Mutant 10% | Hacker-Mutant 7% | Mutant 4% | Scavenger-Mutant Dominant Class ---------------- Mutant | -10/Materials Mutant | -10/Mines Mutant | -9/Materials Hauler-Mutant | -9/Mines Hauler-Mutant | -8/Materials Hauler-Mutant | -8/Storage Hauler-Mutant | -7/Factory Hauler-Mutant | -7/Lower Caves Hauler-Mutant | -7/Lower Caves Hauler-Mutant | -7/Data Miner Hauler-Mutant | -6/Proximity Caves Hacker-Mutant | -6/Factory Hacker-Mutant | -6/Garrison Bothacker-Mutant | -5/Factory Bothacker-Mutant | -5/Waste Bothacker-Mutant | -5/Factory Bothacker-Mutant | -5/Garrison Bothacker-Mutant | -4/Factory Bothacker-Mutant | -4/Waste Bothacker-Mutant | -4/Factory Bothacker-Mutant | -4/Extension Bothacker-Mutant | -4/Cetus Bothacker-Mutant | -4/Archives Bothacker-Mutant | -4/Hub_04(d) Hauler-Mutant | -4/Garrison Resources | -11 -10 -10 -9 -9 -8 -8 -7 -7 -7 -7 -6 -6 -6 -5 -5 -5 -5 -4 -4 -4 -4 -4 -4 -4 -4 ----------- Run | Scr Mat Min Mat Min Mat Sto Fac Low Low Dat Pro Fac Gar Fac Was Fac Gar Fac Was Fac Ext Cet Arc Hub Gar Matter Collected 8402 | 170 75 286 230 10 181 350 689 183 169 . 214 398 601 670 290 876 472 572 360 225 580 308 . 286 207 Remotely . | . . . . . . . . . . . . . . . . . . . . . . . . . . Salvage Created 15438 | . 50 330 682 31 922 1103 1178 259 263 . 333 1357 1011 1000 522 1578 931 643 793 627 370 470 36 632 317 Parts 672 | . 2 21 34 3 64 63 55 16 15 . 1 56 37 54 12 61 24 24 15 25 11 19 1 49 10 Haulers Intercepted 9 | . . . 5 . 2 1 . . . . . 1 . . . . . . . . . . . . . Recyclers Shooed 15 | . . . . . . . . . . . . 1 . 7 . 4 . 1 . 1 1 . . . . Parts Field Recycled . | . . . . . . . . . . . . . . . . . . . . . . . . . . Retrieved Matter . | . . . . . . . . . . . . . . . . . . . . . . . . . . Parts Self-Destructed 19 | . . . . . . . . 7 11 . 1 . . . . . . . . . . . . . . Prevented 10 | . . . . . . . . 6 3 . 1 . . . . . . . . . . . . . . Kills | -11 -10 -10 -9 -9 -8 -8 -7 -7 -7 -7 -6 -6 -6 -5 -5 -5 -5 -4 -4 -4 -4 -4 -4 -4 -4 ------- Run | Scr Mat Min Mat Min Mat Sto Fac Low Low Dat Pro Fac Gar Fac Was Fac Gar Fac Was Fac Ext Cet Arc Hub Gar Combat Hostiles Destroyed 231 | . 1 8 12 2 15 23 15 11 8 . 6 19 22 10 2 15 16 7 3 8 4 9 1 8 6 Melee 11 | . . . . . . . . . . . . 1 . 7 1 . 1 1 . . . . . . . Guns 65 | . 1 6 1 . 6 2 5 3 1 . . 2 9 2 1 3 6 1 1 . . 4 . 7 4 Cannons 92 | . . 2 6 2 9 14 8 . . . 3 12 6 . . 10 2 5 2 5 4 1 . 1 . AOE 45 | . . . 5 . . 6 . 7 7 . 2 1 7 1 . . 2 . . . . 4 1 . 2 Classes Destroyed 18 | . 1 2 2 . 4 2 3 . . . 1 . . . 1 . 1 . . . 1 . . . . Worker 18 | . . . . . 1 1 1 . . . . 6 . 4 . . . 1 . . . . . 4 . Builder 12 | . . . . . . . 1 . . . . . . 3 . 1 . 2 . . 1 . . 4 . Tunneler 4 | . . . . . . . 1 . . . . . . 2 . . . . . . . . . 1 . Hauler 9 | . . . 5 . 2 1 . . . . . 1 . . . . . . . . . . . . . Recycler 15 | . . 2 . . . 1 3 . . . . 1 . 2 . 4 . 1 . 1 . . . . . Operator 4 | . . . . . 2 . 1 . . . . . . . . 1 . . . . . . . . . Watcher 6 | . . . . . 2 . 3 . . . . . . . . . . . . . . 1 . . . Swarmer 54 | . . 8 5 2 2 4 . 10 4 . . 3 7 4 . 2 . . . . . 3 . . . Saboteur 2 | . . . . . . . . . . . . . . . . . 2 . . . . . . . . Grunt 85 | . 1 . 4 . 5 7 4 . 4 . 4 10 9 3 . 6 12 1 . 2 1 1 1 6 4 Brawler 2 | . . . . . . . . . . . 1 . . . . . 1 . . . . . . . . Duelist 4 | . . . . . . 1 . . . . 1 1 . . . . . . . . . . . . 1 Sentry 35 | . . . 3 . 7 8 3 1 . . . 1 4 1 . 3 1 2 . 1 . . . . . Demolisher 3 | . . . . . . 3 . . . . . . . . . . . . . . . . . . . Hunter 11 | . . . . . 1 . 2 . . . . . 2 1 . . . 1 . 2 1 . . . 1 Programmer 24 | . . . . . . . 6 . . . . 4 . 2 . 4 . 3 . 3 . . . 2 . Behemoth 2 | . . . . . . . . . . . . . . . . . . . . . 2 . . . . Compactor 5 | . . . . . . . . . . . . . . . 2 . . . 3 . . . . . . Cetus Guard 5 | . . . . . . . . . . . . . . . . . . . . . . 5 . . . Thug 2 | . . . 1 . . 1 . . . . . . . . . . . . . . . . . . . Savage 1 | . . . . . . . . . . . . . . . . . . . . . . 1 . . . Best Kill Streak 8 | . 1 3 5 2 5 6 7 4 4 . 3 6 7 5 1 8 4 3 1 2 2 4 1 8 3 Combat Bots Only 7 | . 1 3 5 2 5 4 2 4 4 . 3 5 7 2 1 5 4 3 1 2 2 4 1 3 3 Max Kills in Single Turn 5 | . 1 2 5 1 1 2 2 2 3 . 2 4 3 2 1 1 1 1 1 1 1 3 1 2 1 Gunslinging 1 | . . 1 . . . . . . . . . . . . . . . . . . . . . . . Exploded 5 | . . . 5 . . 2 . 2 3 . 2 1 3 1 . . 1 . . . . 2 1 . 1 Melee 1 | . . . . . . . . . . . . 1 . 1 1 . 1 1 . . . . . . . Uniques/NPCs Destroyed . | . . . . . . . . . . . . . . . . . . . . . . . . . . Combat | -11 -10 -10 -9 -9 -8 -8 -7 -7 -7 -7 -6 -6 -6 -5 -5 -5 -5 -4 -4 -4 -4 -4 -4 -4 -4 -------- Run | Scr Mat Min Mat Min Mat Sto Fac Low Low Dat Pro Fac Gar Fac Was Fac Gar Fac Was Fac Ext Cet Arc Hub Gar Damage Taken 23828 | . 10 289 275 9 1151 1474 1554 403 348 . 697 1416 2357 695 . 2287 795 973 . 891 1878 1879 319 3209 919 Core 2661 | . . 88 22 . 118 169 101 74 13 . 128 192 197 96 . 269 35 118 . 26 217 198 . 392 208 Absorbed by Shields 336 | . . . . . . . . . . . . . . 30 . 144 115 . . . 47 . . . . Core Remaining (%) 67 | 100 . 64 . 94 . 47 . . . . 54 . 54 . . . 60 . . . . . . . . Volleys Fired 918 | . 1 21 31 3 66 62 73 14 11 . 21 52 53 44 33 93 49 43 44 47 57 36 1 42 21 Largest 2 | . 2 2 2 2 2 2 2 2 2 . 2 2 2 2 2 2 2 2 2 2 2 2 2 2 2 Hottest 200 | . 60 95 150 143 150 143 143 124 119 . 134 180 180 81 66 171 146 200 123 195 200 198 140 155 80 Shots Fired 1548 | . 2 42 61 6 127 117 142 20 15 . 42 103 97 49 51 142 84 58 80 70 63 68 2 72 35 Gun 550 | . 2 39 14 . 33 31 58 9 4 . 9 17 53 10 42 33 39 4 37 . . 27 1 57 31 Cannon 809 | . . 3 46 6 93 80 84 4 5 . 27 86 32 8 . 82 40 33 37 62 31 38 1 11 . Launcher 47 | . . . 1 . . 6 . 7 6 . 6 . 12 . . . 2 . . . . 3 . . 4 Special 142 | . . . . . 1 . . . . . . . . 31 9 27 3 21 6 8 32 . . 4 . Kinetic 338 | . 1 21 . . 4 9 40 . . . . 2 41 10 42 29 . . 37 . . 27 1 43 31 Thermal 608 | . . 3 51 6 123 80 58 . . . 22 58 29 . . 25 . 25 37 43 12 24 1 11 . Explosive 26 | . . . 1 . . 3 . 3 3 . 3 . 4 . . . 2 . . . . 3 . . 4 Electromagnetic 435 | . 1 18 9 . . 25 44 17 12 . 17 43 23 8 . 61 79 12 . 19 19 14 . 14 . Robot Hit Streak 30 | . 1 5 10 1 9 13 14 5 8 . 7 25 18 7 6 12 5 9 24 8 30 15 4 8 18 Robot Miss Streak 7 | . . 6 5 2 3 4 3 3 5 . 7 2 6 2 3 4 4 5 2 4 1 3 1 3 1 Penetration Max 1 | . . . . . . . . . . . . . . 1 . 1 . . . . . 1 . 1 1 Secondary Targets 6 | . . 2 . . . . . . . . . . 1 1 . . . . . . . . . 1 1 Max Gunslinging Chain 1 | . . 1 . . . . . . . . . . 1 1 . . . . . . . . . 1 1 Shots Hit Robots 1103 | . 1 19 34 1 77 76 97 9 7 . 26 83 72 69 54 86 42 49 71 41 57 52 1 50 29 Core Hits 520 | . 1 11 22 2 30 39 37 17 11 . 18 39 68 27 10 36 24 14 12 15 11 28 1 29 18 Critical Hits 63 | . . . 6 . 4 6 5 . 1 . 1 1 . 3 2 5 2 . 1 1 1 5 . 11 8 Critical Kills 24 | . . . 3 . 2 4 1 . 1 . . 1 . 1 . 1 1 . . . . 3 . 4 2 Critical Parts Destroyed 35 | . . . 3 . 2 2 4 . . . 1 . . 2 . 4 1 . . 1 1 1 . 7 6 Melee Attacks 101 | . . . . . . . 13 . . . . 7 1 51 18 2 1 6 . 1 1 . . . . Impact . | . . . . . . . . . . . . . . . . . . . . . . . . . . Slashing 101 | . . . . . . . 13 . . . . 7 1 51 18 2 1 6 . 1 1 . . . . Piercing . | . . . . . . . . . . . . . . . . . . . . . . . . . . Sneak Attacks 43 | . . . . . . . . . . . . . . 19 18 1 . 5 . . . . . . . Combat Hostiles 27 | . . . . . . . . . . . . . . 7 18 . . 2 . . . . . . . Follow-up Attacks . | . . . . . . . . . . . . . . . . . . . . . . . . . . Damage Inflicted 36642 | . 15 290 1049 50 1863 2338 2679 794 597 . 1149 3078 2502 3321 1803 2547 1703 1520 1703 1433 858 2168 38 1822 1322 Guns 9684 | . 15 215 149 . 572 441 685 99 43 . 146 387 825 368 785 707 592 70 805 . . 659 . 1461 660 Cannons 16289 | . . 75 571 50 1281 1141 1807 49 . . 541 2277 822 132 . 1663 700 696 898 1433 858 965 38 292 . Explosions 5911 | . . . 329 . . 756 138 646 554 . 462 379 855 55 . . 411 51 . . . 544 . 69 662 Melee 4748 | . . . . . . . 49 . . . . 35 . 2766 1018 177 . 703 . . . . . . . Ramming . | . . . . . . . . . . . . . . . . . . . . . . . . . . Kinetic 6546 | . . 79 . . 65 133 428 . . . . 35 668 368 785 610 . . 805 . . 659 . 1251 660 Thermal 12852 | . . 75 700 50 1798 1289 1202 103 27 . 497 1863 727 55 . 625 48 546 898 939 376 635 38 361 . Explosive 3385 | . . . 260 . . 169 . 330 229 . 210 . 618 . . . 363 . . . . 544 . . 662 Electromagnetic 9111 | . 15 136 89 . . 747 1000 361 341 . 442 1145 489 132 . 1135 1292 271 . 494 482 330 . 210 . Impact . | . . . . . . . . . . . . . . . . . . . . . . . . . . Slashing 4748 | . . . . . . . 49 . . . . 35 . 2766 1018 177 . 703 . . . . . . . Piercing . | . . . . . . . . . . . . . . . . . . . . . . . . . . Highest Corruption 23 | . . . 2 2 . 1 7 5 1 . . 1 1 . 19 23 22 3 2 . . . . 1 1 Average Corruption 7 | . . . 2 2 . 1 6 3 1 . . 1 1 . 12 20 21 1 1 . . . . 1 1 Corruption Purged 19 | . . . . . . 1 2 5 1 . . 1 1 . . 1 3 1 2 . . . . . 1 Effects 305 | . . . . 5 . . 43 10 . . . 4 6 . 19 105 102 4 4 . . . . 3 . Message Errors 55 | . . . . 1 . . 10 5 . . . 2 1 . 6 11 16 . 2 . . . . 1 . Matter Fused 33 | . . . . . . . 5 1 . . . . . . 2 12 13 . . . . . . . . Heat Flow Errors 22 | . . . . . . . 4 1 . . . . . . 1 5 10 1 . . . . . . . Energy Discharges 28 | . . . . 2 . . 6 1 . . . . 1 . 2 6 8 1 . . . . . 1 . Parts Rejected 6 | . . . . . . . 1 1 . . . . . . . 1 3 . . . . . . . . Data Loss (minor) 20 | . . . . 1 . . 4 . . . . . 3 . . 6 4 2 . . . . . . . Data Loss (major) 10 | . . . . . . . 4 . . . . . . . . 3 3 . . . . . . . . Misfires 7 | . . . . . . . 4 . . . . . . . . 1 2 . . . . . . . . Alerts 6 | . . . . . . . . . . . . . . . 1 2 3 . . . . . . . . Misdirections 28 | . . . . . . . . . . . . . . . . 12 16 . . . . . . . . Targeting Errors 79 | . . . . 1 . . 5 1 . . . 2 1 . 4 40 23 . 1 . . . . 1 . Weapon Failures 11 | . . . . . . . . . . . . . . . 3 6 1 . 1 . . . . . . Overload Shots . | . . . . . . . . . . . . . . . . . . . . . . . . . . Overflow Damage 1773 | . . . 16 . 28 73 177 . . . 64 149 57 794 . 103 6 213 . 47 . 30 . 4 12 Projectiles 525 | . . . 5 . 28 25 177 . . . 60 149 7 . . 11 6 6 . 47 . . . 4 . Explosions 156 | . . . 11 . . 48 . . . . 4 . 50 . . . . 1 . . . 30 . . 12 Melee 1092 | . . . . . . . . . . . . . . 794 . 92 . 206 . . . . . . . Knockbacks . | . . . . . . . . . . . . . . . . . . . . . . . . . . Impact . | . . . . . . . . . . . . . . . . . . . . . . . . . . Kinetic . | . . . . . . . . . . . . . . . . . . . . . . . . . . Secondary . | . . . . . . . . . . . . . . . . . . . . . . . . . . Self-Inflicted Damage 588 | . . . 35 . . 95 35 109 56 . 15 72 156 . . . . . . . . . . 15 . Shots 22 | . . . 1 . . 4 1 4 3 . 1 1 6 . . . . . . . . . . 1 . Rammed . | . . . . . . . . . . . . . . . . . . . . . . . . . . Targets Rammed . | . . . . . . . . . . . . . . . . . . . . . . . . . . Kicked . | . . . . . . . . . . . . . . . . . . . . . . . . . . Crushed . | . . . . . . . . . . . . . . . . . . . . . . . . . . Highest Temperature 350 | . . 99 126 99 276 324 291 262 146 . 199 102 129 172 296 306 350 193 195 300 188 198 . 129 11 Average Temperature 83 | . . 46 46 53 78 75 62 59 81 . 72 28 41 47 151 105 98 79 95 110 68 117 . 52 7 Received Heat Transfer 4602 | . 6 . 75 . 342 387 282 24 117 . 261 345 456 84 . 600 249 153 . 45 192 282 21 609 72 Effects 9 | . . . . . 2 2 1 . . . . . . . 1 . 2 . . 1 . . . . . Shutdowns 1 | . . . . . . . . . . . . . . . . . 1 . . . . . . . . Energy Bleed 6 | . . . . . 2 1 1 . . . . . . . 1 . . . . 1 . . . . . Interference 2 | . . . . . . 1 . . . . . . . . . . 1 . . . . . . . . Siege Activations . | . . . . . . . . . . . . . . . . . . . . . . . . . . Robots Corrupted 18 | . . . . . . 1 3 1 . . 1 3 . . . 2 5 . . 2 . . . . . Combat Hostiles 17 | . . . . . . 1 2 1 . . 1 3 . . . 2 5 . . 2 . . . . . Parts Fried 57 | . . . . . . 1 8 1 5 . 4 8 2 . . 10 10 1 . 5 2 . . . . Impact Corruptions . | . . . . . . . . . . . . . . . . . . . . . . . . . . Robots Melted 1 | . . . . . . . . . . . . . . . . . . . . 1 . . . . . Combat Hostiles 1 | . . . . . . . . . . . . . . . . . . . . 1 . . . . . Parts Melted 19 | . . . 2 . 5 . 2 . . . . 1 1 . . . . 4 . 1 1 2 . . . Heat Transferred 16875 | . . 111 1136 74 2997 2037 1643 150 50 . 655 2102 1100 50 . 703 50 474 1221 888 335 728 37 334 . Parts Sabotaged . | . . . . . . . . . . . . . . . . . . . . . . . . . . Parts Stolen . | . . . . . . . . . . . . . . . . . . . . . . . . . . Parts Stripped . | . . . . . . . . . . . . . . . . . . . . . . . . . . Power Chain Reactions 13 | . . . 1 . . 2 1 2 1 . 1 . 1 1 . . 1 1 . . . . . 1 . Missiles Intercepted . | . . . . . . . . . . . . . . . . . . . . . . . . . . Alert | -11 -10 -10 -9 -9 -8 -8 -7 -7 -7 -7 -6 -6 -6 -5 -5 -5 -5 -4 -4 -4 -4 -4 -4 -4 -4 ------- Run | Scr Mat Min Mat Min Mat Sto Fac Low Low Dat Pro Fac Gar Fac Was Fac Gar Fac Was Fac Ext Cet Arc Hub Gar Peak Influence 836 | . 77 220 318 204 259 450 654 . . . . 396 794 526 186 210 836 521 77 215 330 363 144 334 314 Initial 438 | . . 30 43 123 1 31 103 . . . . 6 137 416 184 130 138 438 77 . 31 36 144 50 87 Average 215 | . 33 143 181 98 150 284 116 . . . . 144 514 247 185 74 557 339 35 64 74 261 143 140 193 Maximum Alert Level 3 | . . 1 1 1 1 2 2 . . . . 1 3 2 . 1 3 2 . 1 1 1 . 1 1 Low Security (%) 59 | 100 100 58 65 87 67 13 93 . . . . 78 16 41 100 99 13 6 100 97 94 37 100 81 51 Level 1 24 | . . 41 34 12 32 82 . . . . . 21 8 38 . . 18 56 . 2 5 62 . 18 48 Level 2 12 | . . . . . . 4 6 . . . . . 69 19 . . 30 37 . . . . . . . Level 3 2 | . . . . . . . . . . . . . 6 . . . 37 . . . . . . . . Level 4 . | . . . . . . . . . . . . . . . . . . . . . . . . . . Level 5 . | . . . . . . . . . . . . . . . . . . . . . . . . . . High Security . | . . . . . . . . . . . . . . . . . . . . . . . . . . Max Security . | . . . . . . . . . . . . . . . . . . . . . . . . . . Squads Dispatched 53 | . 2 . 3 . 3 3 12 . . . . 5 . 5 . 6 . 4 . 3 1 1 . 5 . Investigation 9 | . 1 . 1 . 1 . 3 . . . . 1 . 1 . . . . . . . 1 . . . Extermination 16 | . . . . . . . 5 . . . . 3 . 2 . 1 . 3 . 1 . . . 1 . Reinforcement 16 | . 1 . 2 . 2 1 1 . . . . . . 1 . 2 . 1 . 2 1 . . 2 . Assault 2 | . . . . . . 2 . . . . . . . . . . . . . . . . . . . Garrison 10 | . . . . . . . 3 . . . . 1 . 1 . 3 . . . . . . . 2 . Intercept . | . . . . . . . . . . . . . . . . . . . . . . . . . . Construction Impeded 5 | . . . . . 1 . 1 . . . . . . 1 . 1 . . . . . . . 1 . Haulers Reinforced 1 | . . . . . . . . . . . . . . . . . . 1 . . . . . . . Stealth | -11 -10 -10 -9 -9 -8 -8 -7 -7 -7 -7 -6 -6 -6 -5 -5 -5 -5 -4 -4 -4 -4 -4 -4 -4 -4 --------- Run | Scr Mat Min Mat Min Mat Sto Fac Low Low Dat Pro Fac Gar Fac Was Fac Gar Fac Was Fac Ext Cet Arc Hub Gar Distress Signals 19 | . . . 3 . 3 4 1 . . . . . . 1 . 2 . . . 4 . . . 1 . Communications Jammed . | . . . . . . . . . . . . . . . . . . . . . . . . . . Distress Signals . | . . . . . . . . . . . . . . . . . . . . . . . . . . Times Spotted 493 | . 2 12 27 3 42 63 25 16 4 . 12 20 23 37 6 42 28 21 5 20 29 18 8 20 10 Peak Tracking Total 12 | . 1 3 8 3 8 12 3 9 4 . 4 3 5 5 3 8 5 5 2 4 6 6 6 4 7 Tactical Retreats 32 | . . 2 1 . 3 3 1 2 . . 1 . 4 1 . . 7 . . . 2 . . 3 2 Traps | -11 -10 -10 -9 -9 -8 -8 -7 -7 -7 -7 -6 -6 -6 -5 -5 -5 -5 -4 -4 -4 -4 -4 -4 -4 -4 ------- Run | Scr Mat Min Mat Min Mat Sto Fac Low Low Dat Pro Fac Gar Fac Was Fac Gar Fac Was Fac Ext Cet Arc Hub Gar Traps Triggered 32 | . . . 1 . 1 5 2 . . . . 2 5 2 . . 4 1 . . 7 . . . 2 Indirectly . | . . . . . . . . . . . . . . . . . . . . . . . . . . Trap Hack Attempts . | . . . . . . . . . . . . . . . . . . . . . . . . . . Triggered . | . . . . . . . . . . . . . . . . . . . . . . . . . . Disarmed 6 | . . . . . . . . . . . . . . . . . . . . 6 . . . . . Reprogrammed . | . . . . . . . . . . . . . . . . . . . . . . . . . . Reused . | . . . . . . . . . . . . . . . . . . . . . . . . . . Traps Extracted . | . . . . . . . . . . . . . . . . . . . . . . . . . . Installed . | . . . . . . . . . . . . . . . . . . . . . . . . . . Triggered 5 | . . . . . . 1 1 . 1 . . . . . . . . . . . 2 . . . . Machines | -11 -10 -10 -9 -9 -8 -8 -7 -7 -7 -7 -6 -6 -6 -5 -5 -5 -5 -4 -4 -4 -4 -4 -4 -4 -4 ---------- Run | Scr Mat Min Mat Min Mat Sto Fac Low Low Dat Pro Fac Gar Fac Was Fac Gar Fac Was Fac Ext Cet Arc Hub Gar Machines Disabled 42 | . . . 1 . 2 4 5 . . . . 12 4 2 . 2 5 1 . . . . . 3 1 Max in Single Turn 12 | . . . 1 . 1 1 1 . . . . 12 1 . . 1 1 . . . . . . 1 1 Garrison Access 3 | . . . . . 1 . . . . . . . . 2 . . . . . . . . . . . Garrison Relay 7 | . . . . . . . . . . . . . 3 . . . 3 . . . . . . . 1 Machines Sabotaged . | . . . . . . . . . . . . . . . . . . . . . . . . . . Garrisons Compromised . | . . . . . . . . . . . . . . . . . . . . . . . . . . Overloaded Fab Kills . | . . . . . . . . . . . . . . . . . . . . . . . . . . Fab Network Shutdowns 2 | . . . . . . . 1 . . . . . . 1 . . . . . . . . . . . Hacking | -11 -10 -10 -9 -9 -8 -8 -7 -7 -7 -7 -6 -6 -6 -5 -5 -5 -5 -4 -4 -4 -4 -4 -4 -4 -4 --------- Run | Scr Mat Min Mat Min Mat Sto Fac Low Low Dat Pro Fac Gar Fac Was Fac Gar Fac Was Fac Ext Cet Arc Hub Gar Machines Accessed 100 | . 2 1 5 . 10 12 15 . 2 4 . 14 . 8 . 9 . 4 . 5 3 1 1 4 . Terminals 55 | . 1 . 4 . 6 9 10 . . . . 7 . 3 . 5 . 1 . 3 2 1 . 3 . Fabricators 11 | . . . . . . . 2 . . . . 3 . 3 . 1 . 1 . 1 . . . . . Repair Stations 9 | . . . . . 1 2 2 . . . . 2 . . . 1 . . . . 1 . . . . Recycling Units 6 | . 1 . . . 1 1 . . . . . . . . . 1 . 2 . . . . . . . Scanalyzers 5 | . . . 1 . 1 . 1 . . . . 1 . . . . . . . 1 . . . . . Garrison Access 6 | . . . . . 1 . . . . . . 1 . 2 . 1 . . . . . . . 1 . Total Hacks 390 | . 5 1 23 . 36 38 53 . 6 28 . 65 . 25 . 25 . 12 . 18 11 3 25 16 . Successful 270 | . 5 1 13 . 25 27 32 . 6 28 . 41 . 17 . 13 . 7 . 12 7 . 25 11 . Failed 120 | . . . 10 . 11 11 21 . . . . 24 . 8 . 12 . 5 . 6 4 3 . 5 . Catastrophic 9 | . . . . . . 1 3 . . . . 1 . 1 . 1 . . . 1 . . . 1 . Database Lockouts . | . . . . . . . . . . . . . . . . . . . . . . . . . . Manual 141 | . 3 . 12 . 14 14 17 . . . . 22 . 10 . 16 . 7 . 6 7 . . 13 . Terminals 212 | . 3 . 19 . 26 28 31 . . . . 35 . 11 . 16 . 2 . 14 9 3 . 15 . Fabricators 39 | . . . . . . . 8 . . . . 13 . 10 . 3 . 3 . 2 . . . . . Repair Stations 34 | . . . . . 2 8 12 . . . . 8 . . . 2 . . . . 2 . . . . Recycling Units 17 | . 2 . . . 3 2 . . . . . . . . . 3 . 7 . . . . . . . Scanalyzers 19 | . . . 4 . 3 . 2 . . . . 8 . . . . . . . 2 . . . . . Garrison Access 9 | . . . . . 2 . . . . . . 1 . 4 . 1 . . . . . . . 1 . Terminal Hacks 133 | . 1 1 5 . 13 13 10 . 6 28 . 15 . 2 . 3 . . . 5 2 . 25 4 . Record 41 | . . . . . . . . . 5 11 . . . . . . . . . . . . 25 . . Part Schematic 15 | . . . . . 1 . 1 . . 9 . 2 . . . . . . . 1 . . . 1 . Robot Schematic 7 | . . . . . . . 1 . . 5 . . . . . . . . . . . . . 1 . Robot Analysis 5 | . . . 2 . 2 . . . . . . . . . . 1 . . . . . . . . . Prototype ID Bank 11 | . . . 1 . 3 2 . . . 3 . 2 . . . . . . . . . . . . . Open Door 4 | . . 1 . . . 2 . . 1 . . . . . . . . . . . . . . . . Branch Access Points 5 | . . . 1 . 1 . 1 . . . . 1 . . . 1 . . . . . . . . . Emergency Access Points 2 | . . . . . . 1 . . . . . 1 . . . . . . . . . . . . . Machine Index 1 | . . . . . . . . . . . . 1 . . . . . . . . . . . . . Terminal Index 4 | . . . . . . . 1 . . . . 1 . . . . . . . . 1 . . 1 . Fabricator Index 3 | . . . . . . . 1 . . . . . . 1 . . . . . 1 . . . . . Scanalyzer Index 2 | . . . . . . 1 1 . . . . . . . . . . . . . . . . . . Garrison Index 1 | . . . . . . 1 . . . . . . . . . . . . . . . . . . . Alert Level 4 | . . . . . . 1 . . . . . 3 . . . . . . . . . . . . . Unreport Threat 9 | . . . . . 3 1 2 . . . . 1 . 1 . . . . . . 1 . . . . Locate Traps 7 | . 1 . 1 . 1 1 1 . . . . 2 . . . . . . . . . . . . . Disarm Traps 1 | . . . . . . . . . . . . . . . . . . . . 1 . . . . . Hauler Manifests 3 | . . . . . . 1 . . . . . . . . . 1 . . . 1 . . . . . Registered Components 1 | . . . . . . . . . . . . 1 . . . . . . . . . . . . . Zone Layout 7 | . . . . . 2 2 1 . . . . . . . . . . . . 1 . . . 1 . Fabricator Hacks 21 | . . . . . . . 6 . . . . 5 . 5 . 1 . 2 . 2 . . . . . Load Schematic 11 | . . . . . . . 2 . . . . 3 . 3 . 1 . 1 . 1 . . . . . Build 10 | . . . . . . . 4 . . . . 2 . 2 . . . 1 . 1 . . . . . Repair Station Hacks 28 | . . . . . 2 7 10 . . . . 6 . . . 1 . . . . 2 . . . . Scan Component 15 | . . . . . 1 4 5 . . . . 3 . . . 1 . . . . 1 . . . . Repair 13 | . . . . . 1 3 5 . . . . 3 . . . . . . . . 1 . . . . Recycling Unit Hacks 2 | . 1 . . . 1 . . . . . . . . . . . . . . . . . . . . Report Inventory 2 | . 1 . . . 1 . . . . . . . . . . . . . . . . . . . . Scanalyzer 13 | . . . 4 . 1 . 1 . . . . 6 . . . . . . . 1 . . . . . Insert Component 8 | . . . 2 . 1 . 1 . . . . 3 . . . . . . . 1 . . . . . Analyze 5 | . . . 2 . . . . . . . . 3 . . . . . . . . . . . . . Garrison Access Hacks 8 | . . . . . 1 . . . . . . 1 . 4 . 1 . . . . . . . 1 . Unlock Access 3 | . . . . . . . . . . . . 1 . . . 1 . . . . . . . 1 . Seal Access 3 | . . . . . 1 . . . . . . . . 2 . . . . . . . . . . . Coupler Status 2 | . . . . . . . . . . . . . . 2 . . . . . . . . . . . Unauthorized Hacks 65 | . 3 . 4 . 7 7 5 . . . . 8 . 6 . 7 . 5 . 4 3 . . 6 . Terminals 51 | . 2 . 4 . 5 6 5 . . . . 5 . 4 . 6 . 1 . 4 3 . . 6 . Track 17 | . 1 . 2 . 2 3 1 . . . . 1 . . . 3 . . . 1 1 . . 2 . Assimilate 2 | . . . . . . . 1 . . . . . . . . . . . . . . . . 1 . Botnet 26 | . 1 . 2 . 2 3 2 . . . . 3 . 3 . 3 . 1 . 2 1 . . 3 . Operators 6 | . . . . . 1 . 1 . . . . 1 . 1 . . . . . 1 1 . . . . Fabricators 5 | . . . . . . . . . . . . 3 . 2 . . . . . . . . . . . Report 1 | . . . . . . . . . . . . . . 1 . . . . . . . . . . . Prioritize 1 | . . . . . . . . . . . . 1 . . . . . . . . . . . . . Siphon 3 | . . . . . . . . . . . . 2 . 1 . . . . . . . . . . . Repair Stations . | . . . . . . . . . . . . . . . . . . . . . . . . . . Recycling Units 9 | . 1 . . . 2 1 . . . . . . . . . 1 . 4 . . . . . . . Monitor 1 | . . . . . . . . . . . . . . . . . . 1 . . . . . . . Reject 3 | . . . . . 1 1 . . . . . . . . . . . 1 . . . . . . . Mask 4 | . . . . . 1 . . . . . . . . . . 1 . 2 . . . . . . . Tunnel 1 | . 1 . . . . . . . . . . . . . . . . . . . . . . . . Scanalyzers . | . . . . . . . . . . . . . . . . . . . . . . . . . . Garrison Access . | . . . . . . . . . . . . . . . . . . . . . . . . . . Data Cores Recovered 2 | . . . . . 1 . 1 . . . . . . . . . . . . . . . . . . Used 1 | . . . . . . . 1 . . . . . . . . . . . . . . . . . . Hacking Detections 84 | . 1 . 5 . 9 10 15 . . . . 12 . 6 . 9 . 4 . 5 3 1 . 4 . Full Trace Events 6 | . . . 1 . . . 2 . . . . 1 . 1 . . . . . . . 1 . . . Feedback Events 1 | . . . . . . . . . . . . 1 . . . . . . . . . . . . . Corruption 1 | . . . . . . . . . . . . 1 . . . . . . . . . . . . . Feedback Blocked . | . . . . . . . . . . . . . . . . . . . . . . . . . . Robot Schematics Acquired 7 | . . . . . . . 1 . . 5 . . . . . . . . . . . . . 1 . Robots Built 3 | . . . . . . . 3 . . . . . . . . . . . . . . . . . . Matter 186 | . . . . . . . 186 . . . . . . . . . . . . . . . . . . Time 99 | . . . . . . . 99 . . . . . . . . . . . . . . . . . . Total Robot Build Rating 6 | . . . . . . . 6 . . . . . . . . . . . . . . . . . . Part Schematics Acquired 19 | . . . 1 . 1 . 1 . . 9 . 5 . . . . . . . 1 . . . 1 . Parts Built 7 | . . . . . . . 2 . . . . . . 2 . . . 1 . 2 . . . . . Matter 1959 | . . . . . . . 424 . . . . 603 . 508 . . . 190 . 234 . . . . . Time 578 | . . . . . . . 106 . . . . 236 . 131 . . . 47 . 58 . . . . . Total Part Build Rating 42 | . . . . . . . 12 . . . . . . 11 . . . 5 . 14 . . . . . Parts Repaired 13 | . . . . . 1 3 5 . . . . 3 . . . . . . . . 1 . . . . Time 538 | . . . . . 32 133 245 . . . . 66 . . . . . . . . 62 . . . . Parts Recycled . | . . . . . . . . . . . . . . . . . . . . . . . . . . Recycled Matter . | . . . . . . . . . . . . . . . . . . . . . . . . . . Retrieved Matter . | . . . . . . . . . . . . . . . . . . . . . . . . . . Retrieved Components . | . . . . . . . . . . . . . . . . . . . . . . . . . . Parts Scanalyzed 6 | . . . 2 . 1 . . . . . . 2 . . . . . . . 1 . . . . . Part Schematics Acquired 4 | . . . 1 . . . . . . . . 3 . . . . . . . . . . . . . Parts Damaged . | . . . . . . . . . . . . . . . . . . . . . . . . . . Bothacking | -11 -10 -10 -9 -9 -8 -8 -7 -7 -7 -7 -6 -6 -6 -5 -5 -5 -5 -4 -4 -4 -4 -4 -4 -4 -4 ------------ Run | Scr Mat Min Mat Min Mat Sto Fac Low Low Dat Pro Fac Gar Fac Was Fac Gar Fac Was Fac Ext Cet Arc Hub Gar Used RIF Installer 3 | . . . . . . . . . . . . . 1 . . . 1 . . . . . . . 1 Coupler Efficiency 1 | . . . . . . . . . . . . . . . . . . . . . . . . . 1 Patrol Navigation 1 | . . . . . . . . . . . . . . . . . 1 . . . . . . . . Robots Hacked 85 | . . . . . . . . . . . . . . 24 6 15 3 13 6 4 12 . . 2 . Non-combat 25 | . . . . . . . . . . . . . . 6 . 5 . 3 . 2 9 . . . . Combat 60 | . . . . . . . . . . . . . . 18 6 10 3 10 6 2 3 . . 2 . Robot Hacks Applied 101 | . . . . . . . . . . . . . . 25 7 22 3 16 6 5 14 . . 3 . parse_system 10 | . . . . . . . . . . . . . . 1 1 4 . 1 . . 3 . . . . find_chute 2 | . . . . . . . . . . . . . . 1 . . . 1 . . . . . . . deconstruct_machine 1 | . . . . . . . . . . . . . . 1 . . . . . . . . . . . ignore_repairs 4 | . . . . . . . . . . . . . . . . 1 . 1 . . 2 . . . . map_walls 1 | . . . . . . . . . . . . . . . . 1 . . . . . . . . . find_fabricator 1 | . . . . . . . . . . . . . . . . . . 1 . . . . . . . drop_inventory 6 | . . . . . . . . . . . . . . 1 . 1 . 1 . 1 2 . . . . recall_reinforcements 1 | . . . . . . . . . . . . . . . . . . 1 . . . . . . . ignore_parts 8 | . . . . . . . . . . . . . . 1 . 2 . . . . 5 . . . . purge_threat 2 | . . . . . . . . . . . . . . . . 1 . . . 1 . . . . . find_terminals 1 | . . . . . . . . . . . . . . . . 1 . . . . . . . . . locate_traps 1 | . . . . . . . . . . . . . . . . 1 . . . . . . . . . map_route 2 | . . . . . . . . . . . . . . 1 . 1 . . . . . . . . . mark_security 1 | . . . . . . . . . . . . . . 1 . . . . . . . . . . . ignore_targets 12 | . . . . . . . . . . . . . . . 6 . . . 6 . . . . . . scatter_targeting 3 | . . . . . . . . . . . . . . 1 . 2 . . . . . . . . . amplify_resonance 1 | . . . . . . . . . . . . . . 1 . . . . . . . . . . . disable_weapons 2 | . . . . . . . . . . . . . . . . . . . . . . . . 2 . reboot_system 4 | . . . . . . . . . . . . . . 1 . . . 2 . . 1 . . . . overwrite_iff 19 | . . . . . . . . . . . . . . 10 . 7 1 . . 1 . . . . . formatsys_low 2 | . . . . . . . . . . . . . . . . . . . . 1 1 . . . . formatsys_high 17 | . . . . . . . . . . . . . . 5 . . 2 8 . 1 . . . 1 . Relay Couplers Released 35 | . . . . . . . 4 . . . . . 11 2 . . 14 . . . . . . . 4 Machine Destruction 31 | . . . . . . . . . . . . . 11 2 . . 14 . . . . . . . 4 Programmers 4 | . . . . . . . 4 . . . . . . . . . . . . . . . . . . Attached 25 | . . . . . . . . . . . . . . 9 1 1 3 5 1 2 1 . . 1 1 Robots Rewired 8 | . . . . . . . . . . . . . . . . . . . . . 8 . . . . Allies Hacked 1 | . . . . . . . . . . . . . . 1 . . . . . . . . . . . Hacks Repelled . | . . . . . . . . . . . . . . . . . . . . . . . . . . Allies | -11 -10 -10 -9 -9 -8 -8 -7 -7 -7 -7 -6 -6 -6 -5 -5 -5 -5 -4 -4 -4 -4 -4 -4 -4 -4 -------- Run | Scr Mat Min Mat Min Mat Sto Fac Low Low Dat Pro Fac Gar Fac Was Fac Gar Fac Was Fac Ext Cet Arc Hub Gar Total Allies 84 | . . 1 . 4 . 12 4 . . . 1 . . 15 . 7 3 8 . 3 25 . . 1 . Largest Group 12 | . . 1 1 4 4 12 3 3 . . 1 . . 2 . 2 2 5 . 1 11 9 . 1 . Highest-Rated Group 471 | . . 31 31 71 71 235 30 29 . . 94 . . 98 . 49 24 171 . 30 471 336 . 56 . Highest-Rated Ally 156 | . . 31 31 31 31 31 26 10 . . 94 . . 49 . 49 12 58 . 30 156 49 . 56 . Total Orders 37 | . . . . . . 4 4 . . . . . . 2 . 2 2 13 . 5 4 1 . . . STAY 5 | . . . . . . . . . . . . . . 1 . . 1 2 . . . 1 . . . FOLLOW 6 | . . . . . . 1 . . . . . . . 1 . . 1 2 . . 1 . . . . TUNNEL 3 | . . . . . . . . . . . . . . . . . . . . . 3 . . . . EXPLORE 20 | . . . . . . 3 3 . . . . . . . . 2 . 8 . 4 . . . . . RETURN 3 | . . . . . . . 1 . . . . . . . . . . 1 . 1 . . . . . Ally Attacks 409 | . . 12 . 4 39 39 . 6 . . 9 . . 49 . 22 2 50 . 10 130 25 . 12 . Total Damage 10171 | . . 232 . 27 465 536 . 42 . . 292 . . 944 . 349 33 1383 . 199 4077 987 . 605 . Kills 61 | . . 1 . 1 7 7 . . . . 1 . . 7 . 2 1 6 . . 18 7 . 3 . Allies Corrupted 3 | . . . . . . . 1 . . . . . . . . 1 . 1 . . . . . . . Allies Melted . | . . . . . . . . . . . . . . . . . . . . . . . . . . Intel | -11 -10 -10 -9 -9 -8 -8 -7 -7 -7 -7 -6 -6 -6 -5 -5 -5 -5 -4 -4 -4 -4 -4 -4 -4 -4 ------- Run | Scr Mat Min Mat Min Mat Sto Fac Low Low Dat Pro Fac Gar Fac Was Fac Gar Fac Was Fac Ext Cet Arc Hub Gar Robot Analysis Total 5 | . . . 2 . 2 . . . . . . . . . . 1 . . . . . . . . . Derelict Logs Recovered 6 | . . 1 . 1 . . . 1 2 . 1 . . . . . . . . . . . . . . Drone Launches 49 | . . . . . . 16 2 . . . . . . . . 2 . 24 . 5 . . . . . Drone Recoveries 13 | . . . . . . 1 1 . . . . . . . . 1 . 7 . 3 . . . . . Exploration | -11 -10 -10 -9 -9 -8 -8 -7 -7 -7 -7 -6 -6 -6 -5 -5 -5 -5 -4 -4 -4 -4 -4 -4 -4 -4 ------------- Run | Scr Mat Min Mat Min Mat Sto Fac Low Low Dat Pro Fac Gar Fac Was Fac Gar Fac Was Fac Ext Cet Arc Hub Gar Turns Passed 23789 | 40 272 736 583 562 1336 1923 2127 1138 991 103 1053 1353 1675 1744 294 1025 1350 1075 878 709 1664 333 83 497 245 Spaces Moved 14002 | 33 239 597 365 500 802 1156 1294 831 721 79 724 751 804 979 113 489 724 561 347 362 943 147 57 255 129 Core 1 | 1 . . . . . . . . . . . . . . . . . . . . . . . . . Treads . | . . . . . . . . . . . . . . . . . . . . . . . . . . Legs . | . . . . . . . . . . . . . . . . . . . . . . . . . . Wheels 14001 | 32 239 597 365 500 802 1156 1294 831 721 79 724 751 804 979 113 489 724 561 347 362 943 147 57 255 129 Hover . | . . . . . . . . . . . . . . . . . . . . . . . . . . Flight . | . . . . . . . . . . . . . . . . . . . . . . . . . . Fastest Speed 50 | 50 90 100 100 110 120 130 130 130 130 130 130 125 125 120 130 130 150 130 140 140 120 130 130 115 115 Average Speed 133 | 88 97 100 108 110 129 130 130 130 130 130 131 135 166 135 130 136 150 155 140 150 137 134 130 127 115 Slowest Speed 210 | 90 100 110 110 110 130 170 130 130 130 130 170 170 170 170 130 210 200 200 160 160 170 140 130 160 150 Overloaded Moves . | . . . . . . . . . . . . . . . . . . . . . . . . . . Propulsion Burnouts . | . . . . . . . . . . . . . . . . . . . . . . . . . . Robots Hopped 2 | . . . . . . . . . . . . . . . . . . 1 . . 1 . . . . Cave-ins Triggered . | . . . . . . . . . . . . . . . . . . . . . . . . . . Exploration Rate (%) 56 | 3 43 97 39 92 74 96 34 93 88 68 69 23 64 18 80 15 60 20 99 17 85 57 75 36 26 Regions Visited 25 Branch Regions 11 Pre-discovered Areas 4 | . 1 . . 1 . . . . . 1 1 . . . . . . . . . . . . . . Known Exits Taken 15 | . . . 1 . 1 1 1 1 1 1 1 1 . . . 1 . . . 1 1 1 1 1 . Unknown Exits Taken 4 | 1 1 1 . 1 . . . . . . . . . . . . . . . . . . . . . Scrap Searched 12 | . . 2 . 1 . . . 3 3 . 3 . . . . . . . . . . . . . . Spaces Dug 32 | . . . . . 3 1 11 . . . . 6 . 4 . . . 3 . 2 2 . . . . Terrain Destroyed 445 | . . . 21 2 16 36 14 32 14 . 24 26 17 9 3 7 39 11 1 15 2 60 . 22 74 Melee 23 | . . . . . . . 11 . . . . 6 . 4 . . . . . 1 1 . . . . Projectile 105 | . . . 11 2 16 6 . . . . 5 2 1 . 3 7 . 5 1 14 1 7 . 14 10 AOE 317 | . . . 10 . . 30 3 32 14 . 19 18 16 5 . . 39 6 . . . 53 . 8 64 Terrain Rammed . | . . . . . . . . . . . . . . . . . . . . . . . . . . Walls Destroyed . | . . . . . . . . . . . . . . . . . . . . . . . . . . Machines Disabled . | . . . . . . . . . . . . . . . . . . . . . . . . . . Actions | -11 -10 -10 -9 -9 -8 -8 -7 -7 -7 -7 -6 -6 -6 -5 -5 -5 -5 -4 -4 -4 -4 -4 -4 -4 -4 --------- Run | Scr Mat Min Mat Min Mat Sto Fac Low Low Dat Pro Fac Gar Fac Was Fac Gar Fac Was Fac Ext Cet Arc Hub Gar Total 17497 | 40 274 698 496 507 979 1456 1587 864 755 79 776 967 1046 1286 180 703 897 700 661 464 1270 211 63 349 189 Wait 1235 | . 28 46 34 1 52 153 110 5 8 . 11 87 59 113 . 23 39 11 235 14 182 . . 19 5 Move 13977 | 32 238 596 364 499 801 1155 1293 830 720 78 723 751 803 979 112 489 722 559 346 361 940 146 56 255 129 Hop 2 | . . . . . . . . . . . . . . . . . . 1 . . 1 . . . . Pick Up 281 | 2 2 14 25 2 27 13 25 1 1 . 3 15 29 19 3 24 12 15 7 5 15 11 . 6 5 Fast Attach 81 | 6 2 4 5 . 1 8 4 2 1 . . 5 1 4 1 2 4 7 . 5 14 1 . 3 1 Attach 160 | . . 1 2 . 10 4 9 2 3 . 4 9 24 15 . 12 5 8 2 7 16 9 2 8 8 Detach 44 | . 1 . . . . 1 1 1 1 . . 4 8 6 1 2 3 2 1 5 5 . . 2 . Swap 343 | . 1 3 15 1 7 15 42 8 9 1 13 27 14 31 9 43 20 29 15 9 8 5 2 14 2 Drop 205 | . 1 13 20 1 15 14 17 1 1 . 1 10 14 16 3 13 10 14 11 10 15 3 . . 2 Fire 918 | . 1 21 31 3 66 62 73 14 11 . 21 52 53 44 33 93 49 43 44 47 57 36 1 42 21 Melee 101 | . . . . . . . 13 . . . . 7 1 51 18 2 1 6 . 1 1 . . . . Ram . | . . . . . . . . . . . . . . . . . . . . . . . . . . Kick . | . . . . . . . . . . . . . . . . . . . . . . . . . . Crush . | . . . . . . . . . . . . . . . . . . . . . . . . . . Escape Stasis 136 | . . . . . . 24 . . . . . . 40 8 . . 32 . . . 16 . . . 16 Rewire 2 | . . . . . . . . . . . . . . . . . . . . . . . 2 . . Trap . | . . . . . . . . . . . . . . . . . . . . . . . . . . Miscellaneous 12 | . . . . . . 7 . . . . . . . . . . . 5 . . . . . . . Route ------- -11/Scrapyard -10/Materials (discovered 2 exits: *Mat / *Min) -10/Mines (discovered 2 exits: *Mat x2) -9/Materials (discovered 2 exits: *Min x2) -9/Mines -8/Materials (discovered 4 exits: *Fac x2 / *Sto x2) -8/Storage -7/Factory (discovered 2 exits: *Low x2) -7/Lower Caves -7/Lower Caves (discovered 2 exits: *Fac / *Dat) -7/Data Miner -6/Proximity Caves -6/Factory (discovered 6 exits: *Fac x3 / Low x2 / Gar) -6/Garrison (discovered 2 exits: *Fac x2) -5/Factory -5/Waste -5/Factory (discovered 3 exits: Upp x2 / Gar) -5/Garrison (discovered 2 exits: *Fac x2) -4/Factory -4/Waste -4/Factory -4/Extension (discovered 2 exits: *Res / *Cet) -4/Cetus (discovered 2 exits: *Res / *Arc) -4/Archives -4/Hub_04(d) (discovered 2 exits: *Res / Gar) -4/Garrison History --------- Turn | Location | Event 22 | -11/Scrapyard | Discovered new exit (range 15) 41 | -11/Scrapyard | Entered Materials 100 | -10/Materials | Discovered new exit (range 12) 147 | -10/Materials | Discovered new exit (range 8) 304 | -10/Materials | Build established: Mutant 313 | -10/Materials | Entered Mines 333 | -10/Mines | Met a Derelict bent on vengeance 453 | -10/Mines | Learned Materials emergency access door positions 472 | -10/Mines | Met a Derelict who couldn't figure out how to use a Trap Extractor 574 | -10/Mines | Discovered new exit (range 8) 701 | -10/Mines | Discovered new exit (range 5) 816 | -10/Mines | Received a Mining Laser from a helpful Derelict 1049 | -10/Mines | Entered Materials 1049 | -9/Materials | Accompanied by 1 ally 1049 | -9/Materials | Evolved 2 slots: Utility x2 1451 | -9/Materials | Discovered new exit (range 15) 1455 | -9/Materials | Identified exit to Mines 1632 | -9/Materials | Entered Mines 1663 | -9/Mines | Received a Rocket Launcher from a helpful Derelict 1700 | -9/Mines | Learned location of Storage (-8) 1736 | -9/Mines | Found a damaged Exp. Sensor Array with a note attached 1740 | -9/Mines | Found Prototype Device 1816 | -9/Mines | Discovered new exit (range 13) 1870 | -9/Mines | Assisted by bots powering up and referring to "LRC-V3" 1974 | -9/Mines | Escorted by a lone wolf Derelict 2024 | -9/Mines | Build established: Hauler-Mutant 2194 | -9/Mines | Entered Materials 2194 | -8/Materials | Accompanied by 4 allies 2194 | -8/Materials | Evolved 2 slots: Utility x2 2379 | -8/Materials | Discovered new exit (range 15) 2399 | -8/Materials | Identified exit to Factory 2751 | -8/Materials | Lost 3 parts (1p1u1w) 2785 | -8/Materials | Repaired Arm. Wheel? 3055 | -8/Materials | Discovered exit to Factory (range 16) 3220 | -8/Materials | Identified exit to Storage 3247 | -8/Materials | Found Powered Armor 3256 | -8/Materials | Found Powered Armor 3259 | -8/Materials | Found Powered Armor 3262 | -8/Materials | Found Powered Armor 3506 | -8/Materials | Identified Exp. Sensor Array 3530 | -8/Materials | Entered Storage 4194 | -8/Storage | Discovered exit to Factory (range 14) 4511 | -8/Storage | Repaired Arm. Wheel 4513 | -8/Storage | Repaired Adv. Beam Cannon 4574 | -8/Storage | Repaired Adv. Heat Sink 4619 | -8/Storage | Assisted by bots powering up and referring to "LRC-V3" 4904 | -8/Storage | Build established: Commander-Mutant 4985 | -8/Storage | Met a pair of Derelict thieves 5055 | -8/Storage | Core integrity fell below 50% 5345 | -8/Storage | Build established: Hauler-Mutant 5453 | -8/Storage | Entered Factory 5453 | -7/Factory | Accompanied by 1 ally 5453 | -7/Factory | Evolved 2 slots: Utility x2 5582 | -7/Factory | Identified exit to Lower Caves 5624 | -7/Factory | Repaired Arm. Wheel 5676 | -7/Factory | Repaired Adv. Beam Cannon 5730 | -7/Factory | Repaired Powered Armor? 5839 | -7/Factory | Repaired Exp. Sensor Array 6712 | -7/Factory | Repaired Hvy. Particle Cannon? 6971 | -7/Factory | Fabricated Adv. System Shield (x1) 7016 | -7/Factory | Garrison activated, responded to threat 7033 | -7/Factory | Fabricated Adv. System Shield (x1) 7387 | -7/Factory | Fabricated B-36 Bruiser? 7444 | -7/Factory | Local fabrication network quarantined 7580 | -7/Factory | Entered Lower Caves 7580 | -7/Lower Caves | Accompanied by 3 allies 8169 | -7/Lower Caves | Encountered a Warlord checkpoint 8172 | -7/Lower Caves | Learned location of 1 exit from Factory 8451 | -7/Lower Caves | Attracted the attention of an 0b10 checkpoint 8508 | -7/Lower Caves | Discovered new exit (range 15) 8717 | -7/Lower Caves | Identified exit to Lower Caves 8718 | -7/Lower Caves | Entered another Lower Caves area 8909 | -7/Lower Caves | Discovered new exit (range 15) 8930 | -7/Lower Caves | Identified exit to Factory 9154 | -7/Lower Caves | Learned Factory stockpile data 9154 | -7/Lower Caves | Learned Research stockpile data 9270 | -7/Lower Caves | Learned 12 Factory zone layouts 9302 | -7/Lower Caves | Encountered a Warlord checkpoint 9660 | -7/Lower Caves | Discovered new exit (range 15) 9679 | -7/Lower Caves | Identified exit to Data Miner 9709 | -7/Lower Caves | Entered Data Miner 9709 | -7/Data Miner | Discovered new exit (range 7) 9717 | -7/Data Miner | Identified exit to Proximity Caves 9734 | -7/Data Miner | Met Data Miner 9756 | -7/Data Miner | Learned location of Section 7 (-3) 9756 | -7/Data Miner | Acquired the access code to Warlord's prototype stash 9782 | -7/Data Miner | Received God Mode back door access code from Data Miner 9812 | -7/Data Miner | Entered Proximity Caves 10080 | -6/Proximity Caves | Escorted by Enhanced Grunt 10379 | -6/Proximity Caves | Learned location of Zion (-6) 10571 | -6/Proximity Caves | Lost 4 parts (2u2w) 10845 | -6/Proximity Caves | Discovered exit to Factory (range 15) 10865 | -6/Proximity Caves | Entered Factory 10865 | -6/Factory | Evolved 2 slots: Utility x2 10866 | -6/Factory | Identified exit to Factory 10895 | -6/Factory | Repaired Arm. Wheel 10934 | -6/Factory | Repaired Neutrino Core? 10973 | -6/Factory | Identified exit to Lower Caves 11096 | -6/Factory | Garrison activated, responded to threat 11183 | -6/Factory | Repaired Hvy. Ion Cannon 11205 | -6/Factory | Build established: Hacker-Mutant 11607 | -6/Factory | Discovered exit to Factory (range 13) 12218 | -6/Factory | Identified exit to Garrison 12218 | -6/Factory | Entered Garrison 12262 | -6/Garrison | Triggered checkpoint 12384 | -6/Garrison | Lost 6 parts (1p2n1u2w) 12394 | -6/Garrison | Triggered checkpoint 12580 | -6/Garrison | Lost 3 parts (1p2w) 12632 | -6/Garrison | Triggered checkpoint 12680 | -6/Garrison | Destroyed 7 combat bots 12682 | -6/Garrison | Lost 5 parts (1p2u2w) 12781 | -6/Garrison | Discovered exit to Factory (range 8) 12938 | -6/Garrison | Discovered exit to Factory (range 10) 12967 | -6/Garrison | Installed Relay Interface Framework 13112 | -6/Garrison | Garrison Relay disabled 13525 | -6/Garrison | Triggered checkpoint 13568 | -6/Garrison | Build established: Scavenger-Mutant 13774 | -6/Garrison | Triggered checkpoint 13833 | -6/Garrison | Garrison Relay disabled 13875 | -6/Garrison | Build established: Bothacker-Mutant 13893 | -6/Garrison | Entered Factory 13893 | -5/Factory | Evolved 2 slots: Power x1, Utility x1 14935 | -5/Factory | Garrison activated, responded to threat 15224 | -5/Factory | Fabricated Tactical Coordination Suite (x1) 15290 | -5/Factory | Fabricated Mni. Smartbomb Launcher? 15585 | -5/Factory | Local fabrication network quarantined 15637 | -5/Factory | Sucked down chute 15637 | -5/Factory | Entered Waste 15647 | -5/Waste | Spotted C-40 Crusher 15652 | -5/Waste | EMP discharged 15693 | -5/Waste | Spotted C-40 Crusher 15710 | -5/Waste | Destroyed C-40 Crusher 15733 | -5/Waste | Spotted C-40 Crusher 15752 | -5/Waste | EMP discharged 15752 | -5/Waste | System corruption reached 10% 15765 | -5/Waste | Spotted C-40 Crusher 15847 | -5/Waste | Destroyed C-40 Crusher 15852 | -5/Waste | EMP discharged 15853 | -5/Waste | Found Damper Plating 15879 | -5/Waste | Spotted C-40 Crusher 15899 | -5/Waste | Spotted C-40 Crusher 15911 | -5/Waste | Discovered new exit (range 16) 15929 | -5/Waste | Identified exit to Factory 15931 | -5/Waste | Entered Factory 16419 | -5/Factory | Identified exit to Upper Caves 16552 | -5/Factory | Garrison activated, responded to threat 16644 | -5/Factory | Lost 8 parts (2n3u3w) 16956 | -5/Factory | Identified exit to Garrison 16956 | -5/Factory | Entered Garrison 16965 | -5/Garrison | Triggered checkpoint 17160 | -5/Garrison | Triggered checkpoint 17241 | -5/Garrison | Build established: Scavenger-Mutant 17524 | -5/Garrison | Discovered new exit (range 14) 17542 | -5/Garrison | Identified exit to Factory 17593 | -5/Garrison | Garrison Relay disabled 17714 | -5/Garrison | Discovered exit to Factory (range 8) 17735 | -5/Garrison | Expanded RIF knowledge: Watcher Feeds 17758 | -5/Garrison | Triggered checkpoint 17809 | -5/Garrison | Garrison Relay disabled 17899 | -5/Garrison | Build established: Bothacker-Mutant 17912 | -5/Garrison | Triggered checkpoint 18103 | -5/Garrison | Triggered checkpoint 18136 | -5/Garrison | Garrison Relay disabled 18306 | -5/Garrison | Entered Factory 18306 | -4/Factory | Accompanied by 2 allies 18306 | -4/Factory | Evolved 2 slots: Utility x2 18307 | -4/Factory | Identified exit to Extension 18978 | -4/Factory | Lost 4 parts (1p1n1u1w) 19277 | -4/Factory | Fabricated Imp. Hacking Suite (x1) 19381 | -4/Factory | Sucked down chute 19381 | -4/Factory | Entered Waste 19393 | -4/Waste | Spotted C-40 Crusher 19394 | -4/Waste | Spotted C-40 Crusher 19407 | -4/Waste | Spotted C-40 Crusher 19440 | -4/Waste | Spotted C-40 Crusher 19458 | -4/Waste | Spotted C-40 Crusher 19496 | -4/Waste | Spotted C-40 Crusher 19500 | -4/Waste | Found Prototype Launcher 19535 | -4/Waste | Identified Point Singularity Launcher 19571 | -4/Waste | Discovered new exit (range 12) 19724 | -4/Waste | Destroyed C-40 Crusher 19772 | -4/Waste | Found Damper Plating 19884 | -4/Waste | Destroyed C-40 Crusher 19966 | -4/Waste | Destroyed C-40 Crusher 20259 | -4/Waste | Entered Factory 20609 | -4/Factory | Fabricated Centrium Wheel (x2) 20956 | -4/Factory | Discovered exit to Extension (range 6) 20965 | -4/Factory | P-70 Sage assimilated allied Administrator 7a 20968 | -4/Factory | Entered Extension 21014 | -4/Extension | Rescued a captive Derelict 21118 | -4/Extension | Repaired Hvy. Disruptor Cannon 21151 | -4/Extension | Rescued A7 21189 | -4/Extension | Rescued a captive Derelict 21190 | -4/Extension | Rescued a captive Derelict 21291 | -4/Extension | Rescued a captive Derelict 21292 | -4/Extension | Rescued a captive Derelict 21357 | -4/Extension | Rescued a captive Derelict 21357 | -4/Extension | Rescued a captive Derelict 22204 | -4/Extension | Rescued a captive Derelict 22209 | -4/Extension | Spotted B-86 Titan 22226 | -4/Extension | Spotted B-86 Titan 22247 | -4/Extension | Destroyed B-86 Titan 22255 | -4/Extension | Destroyed B-86 Titan 22266 | -4/Extension | Found Unknown Protection 22266 | -4/Extension | Identified Hvy. Reflective Plating 22280 | -4/Extension | Found Hvy. Reflective Plating 22285 | -4/Extension | Lost 8 parts (2p4u2w) 22348 | -4/Extension | Rescued a captive Derelict 22349 | -4/Extension | Rescued a captive Derelict 22363 | -4/Extension | Rescued a captive Derelict 22364 | -4/Extension | Rescued a captive Derelict 22458 | -4/Extension | Rescued a captive Derelict 22541 | -4/Extension | Rescued a captive Derelict 22541 | -4/Extension | Rescued a captive Derelict 22588 | -4/Extension | Discovered new exit (range 10) 22589 | -4/Extension | Discovered new exit (range 6) 22632 | -4/Extension | Identified exit to Cetus 22632 | -4/Extension | Entered Cetus 22632 | -4/Cetus | Accompanied by 9 allies 22648 | -4/Cetus | Spotted Cetus Guard 22648 | -4/Cetus | Spotted Cetus Guard 22649 | -4/Cetus | Spotted Cetus Guard 22649 | -4/Cetus | Spotted Cetus Guard 22665 | -4/Cetus | Destroyed Cetus Guard 22671 | -4/Cetus | Allies destroyed Cetus Guard 22673 | -4/Cetus | Allies destroyed Cetus Guard 22677 | -4/Cetus | Allies destroyed Cetus Guard 22770 | -4/Cetus | Discovered new exit (range 16) 22805 | -4/Cetus | Discovered new exit (range 27) 22824 | -4/Cetus | Spotted Cetus Guard 22824 | -4/Cetus | Spotted Cetus Guard 22824 | -4/Cetus | Spotted Cetus Guard 22824 | -4/Cetus | Spotted Cetus Guard 22831 | -4/Cetus | Destroyed Cetus Guard 22835 | -4/Cetus | Destroyed Cetus Guard 22865 | -4/Cetus | Destroyed Cetus Guard 22881 | -4/Cetus | Destroyed Cetus Guard 22902 | -4/Cetus | Lost 6 parts (1n3u2w) 22918 | -4/Cetus | Met Revision 17 22963 | -4/Cetus | Identified exit to Archives 22965 | -4/Cetus | Entered Archives 22980 | -4/Archives | Met Zhirov 22986 | -4/Archives | Reinforcements dispatched to Archives 22988 | -4/Archives | Unable to access archive contents 23001 | -4/Archives | Unable to access archive contents 23017 | -4/Archives | Read partially decrypted archive contents 23021 | -4/Archives | Discovered new exit (range 14) 23024 | -4/Archives | Zhirov warped through subspace 23039 | -4/Archives | Identified exit to Hub_04(d) 23042 | -4/Archives | Zhirov detonated Archives 23048 | -4/Archives | Entered Hub_04(d) 23050 | -4/Hub_04(d) | Discovered new exit (range 11) 23062 | -4/Hub_04(d) | Identified exit to Research 23310 | -4/Hub_04(d) | Core integrity fell below 50% 23358 | -4/Hub_04(d) | Garrison activated, responded to threat 23367 | -4/Hub_04(d) | Lost 3 parts (2p1u) 23544 | -4/Hub_04(d) | Core integrity fell below 20% 23545 | -4/Hub_04(d) | Identified exit to Garrison 23545 | -4/Hub_04(d) | Entered Garrison 23556 | -4/Garrison | Expanded RIF knowledge: Coupler Efficiency 23574 | -4/Garrison | Lost 16 parts (2p4n6u4w) 23612 | -4/Garrison | Triggered checkpoint 23672 | -4/Garrison | Garrison Relay disabled 23721 | -4/Garrison | Spotted B-86 Titan 23790 | -4/Garrison | Destroyed by H-77 Assassin with High-powered Shotgun Last Messages --------------- 23774_ Slug penetrates L-61 Swordsman. 23777_ Slug penetrates Wall. 23777_ Penetrated by Slug. 23777_ Slug penetrates Wall. 23777_ Slug penetrates L-61 Swordsman. 23780_ Imp. KE Penetrator destroyed. 23780_ Lrg. Storage Unit destroyed. 23780_ Slug penetrates Wall. 23780_ Centrium Wheel destroyed. 23783_ Slug penetrates L-61 Swordsman. 23783_ L-61 Swordsman destroyed. 23783_ Slug penetrates Earth. 23783_ Slug penetrates Wall. 23784_ Acquired 77 matter. 23786_ Penetrated by Slug. 23786_ Slug penetrates Wall. 23787_ Slug penetrates H-77 Assassin. 23790_ Penetrated by Slug. 23790_ Wheel destroyed. 23790_ Slug penetrates Wall. Map ----- +----------------------------------------------------+ | ?????????????????????????????????????????????????? | | ?????????????????? ??????????????????????????????? | | ?????????????????? ?????#??????????????????????? | | ?????????????????? ????????????????????????????? | | ?????????????????? #??#????????????????????????? | | ???????????? ???# #???????????????????????????? | | ???????? ## ?## #???????????????????????????? | | ???????? ?? "???????????????????????????? | | ???????? ? "???#???????#???????????????? | | ????????? ? "??#???????##???????????????? | | ?????????? ? "???#???????????????????????? | | ???????????# ## #???????????????????????????? | | ?????#?????? "# ####??####?#????????????????? | | ?????????????? ? ? #??????????????????? | | ?????????? ?? ? ?? ?? #????????#?????????? | | ???????????????? ???"?## #????#?????????????? | | ?????????????????" #??? ??# #??????????????????? | | ???????????#?????" #??? #?# #??????????????????? | | ?????????????????# #??# ?# #???????????#??????? | | ??????? ?????????# #??# #?# #???#??????????????? | | ????#????????????# #?? #?# #??#???????????????? | | ??????? ??????#??# #??# #?# #???#??????????????? | | ????????? ???????# #??# #?# #?#????????????????? | | ????????? ?????#?# ####;### ##############?????? | | ?????????????????# !!%[ #?????? | | ?????? ??????????# !=@h[ g ^ #?????? | | ?????????????????####### ################ #?????? | | ???????????????????????#%######## #?????# #?????? | | ??????????????#????#####*## #?????# #?????? | | ???????????????????## !! ##??#####???# #?????? | | ?????????#??#??????# # ##?# #"#???# #?????? | | ??????????????????##### ## #?# "#???# ####### | | ??????????????#???# ### ## ##?# #???# #"""" | | ??????????????????# # # # #?# "#???# | " | | ??????????????????# # # ## ##### #"#???# #"""" | | ???????#?????????### ## ###???########## | | ???????????????????# # # # ######??????????????? | | ???????????????????# # # # #???????????????????? | | ???????????????????# # #####???????????????????? | | ???????????????????#?### ##??#???????????????????? | | ???????????????????????? ???????????#????????????? | | ???????????????????????? ?????????#??????????????? | | ?????????????????????????????????????????????????? | | ?????????????????????????????????#???????????????? | | ????????????????#???????????#????????????????????? | | ?????????????????????????????????????????????????? | | ?????????????????????????????????????????????????? | | ?????????????????????????????????????????????????? | | ?????????????????????????????????????????????????? | | ?????????????????????????????????????????????????? | +----------------------------------------------------+ Best States ------------- Heat Dissipation 70 Coolant Potential 100 Energy Generation 45 Energy Capacity 600 Matter Stores 300 Matter Capacity 300 Sight Range 16 Robot Scan Range 30 Terrain Scan Range 20 Terrain Scan Density 10 Armor Coverage 1200 Resistance: KI 20 Resistance: TH 25 Resistance: EM 90 Propulsion Shielding 66 Utility Shielding 66 Phase Shifting 10 Evasion (%) 50 Offensive Hacking 20 Defensive Hacking 14 Relay Coupler Types 114 Relay Coupler Value 5 Item Schematics ----------------- Hcp. Storage Unit | -9/Materials | Scanalyzed System Shield | -8/Materials | Hacked Adv. System Shield | -7/Factory | Hacked Combat Drone Bay | -7/Data Miner | Free Lgt. Regenerative Plating | -7/Data Miner | Free Triangulator | -7/Data Miner | Free Exp. Terrain Scanner | -7/Data Miner | Free Tactical Coordination Suite | -7/Data Miner | Free Exp. Transmission Jammer | -7/Data Miner | Free Cloaking Device | -7/Data Miner | Free Mni. Smartbomb Launcher | -7/Data Miner | Free Kinetic Spear | -7/Data Miner | Free Exp. Sensor Array | -6/Factory | Scanalyzed Imp. Propulsion Shielding | -6/Factory | Scanalyzed Imp. Utility Shielding | -6/Factory | Scanalyzed Imp. Hacking Suite | -6/Factory | Hacked Proton Cannon | -6/Factory | Hacked Centrium Wheel | -4/Factory | Hacked Adv. Hacking Suite | -4/Hub_04(d) | Hacked Robot Schematics ------------------ B-36 Bruiser | -7/Factory | Hacked S-27 Virus | -7/Data Miner | Free G-50 Soldier | -7/Data Miner | Free G-67 Veteran | -7/Data Miner | Free I-36 Angel | -7/Data Miner | Free I-47 Archangel | -7/Data Miner | Free H-77 Assassin | -4/Hub_04(d) | Hacked Fabricated ------------ Adv. System Shield | x1 | -7/Factory Adv. System Shield | x1 | -7/Factory B-36 Bruiser | x3 | -7/Factory Tactical Coordination Suite | x1 | -5/Factory Mni. Smartbomb Launcher | x1 | -5/Factory Imp. Hacking Suite | x1 | -4/Factory Centrium Wheel | x2 | -4/Factory Alien Tech Used ----------------- None Achievements -------------- None Challenges ------------ None Game ------ Seed FissionSignalSteel Manual? 0 Play Time 05:04:25 Cumulative 212.5 hours Start 2021.09.05 @ 19:52:14 End 2021.09.06 @ 00:58:34 Sessions 1 Manual Loads 0 Difficulty Rogue Special Mode None Game No. 60 Rogue 60 Adventurer 0 Explorer 0 Win Type - Total 10 Types 9/0/1/0/0/0/0/0/0 Lore% 85 Gallery% 87 Achievement% 69 Wizard Run 0 Options --------- ASCII 0 Keyboard 0 Movement Numpad Keybinds 0 Fullscreen 1 Font 14/SmallcapsGlow Map View 84x54 Tactical HUD 1 Map Filters NONE Filters NONE Steam 1 RUN: 21863611-2b14-46ba-bed3-a5d6aaa484f5